bitfinex/quotes_SOLUSD_20240930
["timestamp","ask_amount","ask_price","bid_price","bid_amount"]
[1727719678659,1.5338521,155.15,155.11,16.1169]
[1727719678851,6.4458,155.14,155.11,16.1169]
[1727719679071,6.4454,155.15,155.11,16.1169]
[1727719680264,16.1098,155.19,155.1,16.59]
[1727719680265,1.5338521,155.14,155.1,16.59]
[1727719680480,6.4465,155.13,155.1,16.59]
[1727719681179,6.4458,155.14,155.1,16.59]
[1727719682257,6.4458,155.14,155.1,23.0373]
[1727719685279,6.4462,155.13,155.1,16.59]
[1727719686354,6.446,155.14,155.1,16.59]
[1727719686576,6.446,155.14,155.1,23.0374]
[1727719687679,1.5338521,155.13,155.09,6.2734]
[1727719687882,16.1117,155.17,155.09,6.2734]
[1727719687883,1.5338521,155.16,155.09,6.2734]
[1727719688066,6.447,155.11,155.09,6.2734]
[1727719689063,1.5338521,155.1,155.06,15.9209947]
[1727719689381,38.81,155.17,155.06,15.9209947]
[1727719689382,6.4481,155.09,155.06,15.9209947]
[1727719690184,7.9821521,155.08,155.06,0.3823947]
[1727719690360,16.1159,155.13,155.06,0.3823947]
[1727719690361,6.4487,155.07,155.06,0.3823947]
[1727719699883,6.66176737,155.13,155.06,6.8311947]
[1727719700083,16.1151,155.14,155.06,6.8311947]
[1727719700084,6.4473,155.11,155.06,8.12085944]
[1727719700889,6.4467,155.12,155.07,6.4484]
[1727719701215,6.4458,155.14,155.09,6.4477]
[1727719701401,6.4458,155.14,155.08,16.1202]
[1727719701402,6.4458,155.14,155.1,6.4473]
[1727719701604,6.4458,155.14,155.08,16.1202]
[1727719702384,6.4453,155.15,155.1,13.1095]
[1727719702695,6.4453,155.15,155.11,7.73626374]
[1727719703086,31.2025,155.2,155.11,7.73626374]
[1727719703087,16.1087,155.2,155.12,16.6359]
[1727719703308,6.4445,155.17,155.13,6.4461]
[1727719703692,54.68847184,155.24,155.12,17.92500347]
[1727719703891,6.4437,155.19,155.14,6.4454]
[1727719704096,16.1053,155.23,155.14,17.40283801]
[1727719704097,6.4432,155.21,155.14,17.40283801]
[1727719704305,19.20369153,155.28,155.14,16.1138]
[1727719704495,9.63668714,155.26,155.12,16.6359]
[1727719704687,6.4444,155.18,155.13,6.4461]
[1727719706413,6.4445,155.17,155.13,6.4461]
[1727719706602,6.4441,155.18,155.13,6.4461]
[1727719707405,6.4441,155.18,155.14,6.4457]
[1727719709600,6.4441,155.18,155.13,6.4461]
[1727719711519,6.4448,155.17,155.12,23.0824]
[1727719711691,6.445,155.16,155.12,16.6359]
[1727719711891,6.445,155.16,155.12,23.0824]
[1727719712294,6.4445,155.17,155.13,1.28907753]
[1727719713115,16.1069,155.22,155.13,7.73517753]
[1727719713303,6.4442,155.18,155.14,6.4457]
[1727719714422,6.4442,155.18,155.13,16.1151]
[1727719714724,6.4442,155.18,155.13,22.5612]
[1727719716616,6.4442,155.18,155.14,7.73466444]
[1727719717905,6.4423,155.23,155.18,6.444]
[1727719718214,6.4425,155.22,155.19,16.74478402]
[1727719720420,6.4431,155.21,155.19,15.4562]
[1727719721328,6.4432,155.2,155.19,15.4562]
[1727719721522,6.4441,155.18,155.16,6.2318]
[1727719721825,1.5338521,155.22,155.16,6.2318]
[1727719722017,6.4442,155.18,155.16,6.2318]
[1727719722525,6.4445,155.17,155.16,6.2318]
[1727719722902,6.4445,155.17,155.15,15.4562]
[1727719735928,16.1075,155.21,155.15,15.4562]
[1727719736118,16.1047,155.24,155.16,1.2888822]
[1727719736317,6.1068,155.27,155.15,15.4562]
[1727719736531,16.1015,155.27,155.19,6.4433]
[1727719736837,6.4424,155.22,155.19,1.28855827]
[1727719737215,6.4415,155.25,155.21,6.4428]
[1727719737413,6.4415,155.25,155.2,6.4431]
[1727719740145,16.0983,155.3,155.21,6.4427]
[1727719740354,6.4416,155.24,155.2,6.4432]
[1727719741746,1.5338521,155.29,155.19,16.1087]
[1727719742051,6.44,155.28,155.23,6.4417]
[1727719742236,16.0983,155.3,155.21,38.4841]
[1727719742440,16.0983,155.3,155.21,32.0416]
[1727719742638,6.4408,155.26,155.22,6.4424]
[1727719742947,15.5503,155.33,155.23,1.28813851]
[1727719743139,15.5503,155.33,155.25,6.4412]
[1727719743140,6.4396,155.29,155.25,6.4412]
[1727719743340,6.4396,155.29,155.26,1.2879719]
[1727719743659,6.4396,155.29,155.24,13.1031]
[1727719744245,6.4393,155.3,155.26,6.4408]
[1727719744551,1.5338521,155.32,155.24,6.6615]
[1727719744736,6.4405,155.27,155.24,6.6615]
[1727719745542,6.4409,155.26,155.24,6.6615]
[1727719745739,6.4406,155.27,155.24,6.6615]
[1727719748751,1.5338521,155.3,155.24,6.6615]
[1727719748752,6.4412,155.25,155.24,6.6615]
[1727719749129,6.4412,155.25,155.21,15.9348]
[1727719749525,6.442,155.24,155.21,15.9348]
[1727719750752,6.4421,155.23,155.2,6.1001]
[1727719751342,1.5338521,155.26,155.2,6.1001]
[1727719751553,6.4426,155.22,155.2,6.1001]
[1727719751853,6.4426,155.22,155.17,22.5032]
[1727719752549,6.4429,155.21,155.17,22.5032]
[1727719752756,6.4434,155.2,155.17,16.0587]
[1727719752932,6.4437,155.19,155.17,16.0587]
[1727719753136,1.5338521,155.24,155.16,6.1888]
[1727719753137,6.4441,155.18,155.16,6.1888]
[1727719753538,1.5338521,155.22,155.16,6.1888]
[1727719753743,6.4438,155.19,155.16,6.1888]
[1727719754956,6.4442,155.18,155.16,6.1888]
[1727719755438,6.4445,155.17,155.16,6.1888]
[1727719755639,6.4442,155.18,155.16,6.1888]
[1727719755839,6.4445,155.17,155.13,37.5711]
[1727719756540,6.4445,155.17,155.13,31.125]
[1727719756947,6.445,155.16,155.13,15.0098]
[1727719757739,16.1098,155.19,155.13,15.0098]
[1727719757949,6.4454,155.15,155.13,15.0098]
[1727719760057,16.1098,155.19,155.13,15.0098]
[1727719760058,6.445,155.16,155.13,16.29884729]
[1727719760256,6.4446,155.17,155.13,16.29884729]
[1727719761058,6.4449,155.16,155.13,15.0098]
[1727719761641,1.5338521,155.19,155.13,15.0098]
[1727719761854,6.4453,155.15,155.13,15.0098]
[1727719762077,6.4459,155.14,155.12,6.1823]
[1727719762243,6.4459,155.14,155.1,16.1179]
[1727719762662,1.5338521,155.17,155.1,16.1179]
[1727719763160,6.4459,155.14,155.1,16.1179]
[1727719764073,1.5338521,155.17,155.09,21.8017]
[1727719764266,6.4462,155.13,155.09,21.8017]
[1727719764772,6.4462,155.13,155.09,15.354]
[1727719765467,6.4458,155.14,155.1,7.73645935]
[1727719765670,6.4458,155.14,155.1,6.4472]
[1727719766045,16.1107,155.18,155.1,6.4472]
[1727719766046,6.4454,155.15,155.1,6.4472]
[1727719766244,6.4454,155.15,155.11,7.7361602]
[1727719766742,6.4454,155.15,155.11,6.447]
[1727719767164,6.4454,155.15,155.1,6.4473]
[1727719767469,6.4458,155.14,155.1,6.4473]
[1727719769766,6.445,155.16,155.12,6.4464]
[1727719771168,16.1078,155.21,155.12,1.28912574]
[1727719771371,54.90401607,155.24,155.12,1.28912574]
[1727719771372,31.5749,155.24,155.12,1.28912574]
[1727719771550,6.4426,155.22,155.18,6.444]
[1727719771754,6.4424,155.23,155.18,6.444]
[1727719771958,6.4426,155.22,155.18,6.444]
[1727719772162,16.1037,155.25,155.16,16.2891]
[1727719772475,6.4435,155.2,155.16,16.2891]
[1727719773248,6.4435,155.2,155.16,22.734]
[1727719774957,6.4429,155.21,155.17,7.73328163]
[1727719776953,6.4425,155.22,155.17,6.4445]
[1727719777153,6.4421,155.23,155.19,6.4437]
[1727719777461,6.44,155.28,155.23,6.4417]
[1727719777775,6.4403,155.28,155.24,17.39179442]
[1727719778677,6.4403,155.28,155.24,16.1035]
[1727719779865,6.4404,155.27,155.23,21.6353]
[1727719780288,6.4404,155.27,155.24,1.2881876]
[1727719780581,6.4408,155.26,155.23,15.1936]
[1727719780778,17.7460521,155.32,155.23,15.1936]
[1727719780956,6.4401,155.28,155.24,6.4415]
[1727719781154,6.4401,155.28,155.23,21.6355]
[1727719782577,16.2122,155.32,155.23,15.1936]
[1727719782578,17.6312521,155.31,155.23,15.1936]
[1727719782790,6.4409,155.26,155.23,15.1936]
[1727719785471,6.4413,155.25,155.23,15.1936]
[1727719786262,1.5338521,155.3,155.23,15.1936]
[1727719786467,6.4408,155.26,155.23,15.1936]
[1727719786972,6.442,155.24,155.21,6.3347]
[1727719787971,1.5338521,155.28,155.21,6.3347]
[1727719788175,6.4413,155.25,155.21,12.7775]
[1727719788367,6.4413,155.25,155.22,1.28832623]
[1727719788565,6.4413,155.25,155.21,12.7775]
[1727719789772,6.4413,155.25,155.22,1.28832575]
[1727719789977,6.4413,155.25,155.21,12.7775]
[1727719790363,6.4413,155.25,155.21,6.3347]
[1727719790776,6.4417,155.24,155.21,6.3347]
[1727719793672,16.1015,155.27,155.21,6.3347]
[1727719793870,1.5338521,155.26,155.19,15.3513]
[1727719794071,16.1015,155.27,155.19,15.3513]
[1727719794969,16.1015,155.27,155.19,16.63985563]
[1727719795168,6.4417,155.24,155.2,6.4432]
[1727719795983,6.4417,155.24,155.21,1.28839732]
[1727719796179,6.72528515,155.3,155.21,1.28839732]
[1727719796383,6.4413,155.25,155.21,7.73109732]
[1727719796582,6.4408,155.26,155.22,6.4424]
[1727719796893,16.0986,155.3,155.22,6.4424]
[1727719796894,6.4403,155.28,155.24,6.4416]
[1727719797290,6.4403,155.28,155.25,1.28811525]
[1727719797671,6.4403,155.28,155.24,6.4416]
[1727719798303,6.4391,155.31,155.25,22.396]
[1727719798475,6.4391,155.31,155.26,1.28790072]
[1727719798876,6.4391,155.31,155.26,7.72840072]
[1727719799792,6.4392,155.3,155.25,28.8371]
[1727719800293,6.4392,155.3,155.25,22.396]
[1727719800598,6.4392,155.3,155.26,6.4407]
[1727719800982,6.4404,155.27,155.25,22.396]
[1727719801190,6.44,155.28,155.25,22.396]
[1727719801512,6.4397,155.29,155.25,30.12507028]
[1727719801695,6.4392,155.3,155.25,30.12507028]
[1727719802692,6.4396,155.29,155.25,28.837]
[1727719803885,6.4406,155.27,155.25,22.396]
[1727719804076,32.1855,155.35,155.21,16.1065]
[1727719804077,1.5338521,155.3,155.21,37.5954]
[1727719804274,6.4412,155.25,155.21,44.0382]
[1727719804690,6.4418,155.24,155.21,37.5954]
[1727719805000,1.5338521,155.28,155.18,22.5537]
[1727719805001,16.1013,155.27,155.18,22.5537]
[1727719805177,6.4429,155.21,155.17,27.9333]
[1727719805384,6.4425,155.22,155.17,27.9333]
[1727719805779,6.4431,155.21,155.17,21.4889]
[1727719806508,6.4433,155.2,155.17,21.4889]
[1727719807909,6.4412,155.25,155.21,6.4428]
[1727719808205,16.3598,155.3,155.17,21.4889]
[1727719808206,6.4408,155.26,155.22,7.73072558]
[1727719808494,6.4408,155.26,155.19,16.1089]
[1727719808495,6.4408,155.26,155.21,6.4427]
[1727719808701,6.4408,155.26,155.22,1.28834371]
[1727719809092,6.4408,155.26,155.22,7.73064371]
[1727719809602,6.4421,155.23,155.19,22.5525]
[1727719809898,16.0994,155.29,155.2,1.28841355]
[1727719810085,6.4413,155.25,155.21,6.4427]
[1727719810293,6.4408,155.26,155.22,7.730755]
[1727719810599,16.3598,155.3,155.23,16.1047]
[1727719810600,6.4401,155.28,155.23,16.1047]
[1727719810807,6.4401,155.28,155.24,1.28815736]
[1727719811691,6.72364388,155.33,155.24,23.21715736]
[1727719811890,6.4392,155.3,155.26,6.4407]
[1727719812107,6.4392,155.3,155.26,7.72864297]
[1727719812307,6.4392,155.3,155.25,22.5437]
[1727719813002,15.1272,155.34,155.25,22.5437]
[1727719813323,16.0952,155.33,155.24,28.3705]
[1727719813630,1.5338521,155.32,155.24,21.929]
[1727719813804,5.0,155.3,155.24,21.929]
[1727719814614,6.44,155.28,155.24,21.929]
[1727719814817,5.0,155.3,155.24,28.3705]
[1727719815029,6.4403,155.28,155.24,21.929]
[1727719815224,6.4409,155.26,155.24,21.929]
[1727719815517,5.0,155.24,155.21,6.4425]
[1727719815716,5.0,155.24,155.21,6.4428]
[1727719815921,11.4416,155.24,155.2,29.2]
[1727719816105,11.4416,155.24,155.2,22.7568]
[1727719817210,11.4416,155.24,155.2,29.2]
[1727719817603,5.0,155.24,155.2,22.7568]
[1727719817809,6.4422,155.23,155.2,22.7568]
[1727719818011,6.4422,155.23,155.2,17.7568]
[1727719818399,6.4422,155.23,155.19,22.5522]
[1727719818400,1.5338521,155.23,155.16,6.6339]
[1727719818621,6.4427,155.22,155.18,6.444]
[1727719819820,6.4442,155.18,155.16,6.6339]
[1727719820026,6.4434,155.2,155.16,6.6339]
[1727719820212,6.4434,155.2,155.16,13.0788]
[1727719820725,6.4434,155.2,155.16,6.6339]
[1727719823018,6.4429,155.21,155.17,1.28876561]
[1727719823802,6.4424,155.23,155.17,17.39956561]
[1727719824046,5.0,155.24,155.22,6.4421]
[1727719824502,5.0,155.24,155.23,1.28827638]
[1727719825301,5.0,155.24,155.22,6.4421]
[1727719825610,5.0,155.24,155.21,38.1083]
[1727719825809,5.0,155.24,155.21,31.6656]
[1727719826220,5.0,155.24,155.22,6.4424]
[1727719827521,5.0,155.24,155.21,31.6656]
[1727719827716,11.442,155.24,155.21,15.5593]
[1727719828330,6.442,155.23,155.18,16.1098]
[1727719828535,6.4425,155.22,155.18,16.1098]
[1727719831530,6.4429,155.21,155.17,22.9233]
[1727719831914,6.4425,155.22,155.18,1.28863067]
[1727719832322,6.4425,155.22,155.18,6.444]
[1727719833018,6.4425,155.22,155.18,1.28863197]
[1727719833937,6.4434,155.2,155.16,13.0787]
[1727719834139,1.5338521,155.21,155.15,22.558]
[1727719834140,6.4437,155.19,155.15,22.558]
[1727719834738,6.4441,155.18,155.15,16.1128]
[1727719834938,6.4438,155.19,155.15,16.1128]
[1727719835725,6.4438,155.19,155.15,16.1128]
[1727719836023,21.1045,155.24,155.15,16.1128]
[1727719836218,6.4428,155.22,155.17,6.4442]
[1727719837114,5.0,155.24,155.18,1.28865441]
[1727719837432,6.4421,155.23,155.19,6.4434]
[1727719838328,5.0,155.24,155.18,1.28865441]
[1727719838515,6.4424,155.22,155.18,7.73265441]
[1727719839031,6.4424,155.22,155.18,6.444]
[1727719839631,6.4424,155.22,155.19,1.28859758]
[1727719840223,6.4424,155.22,155.18,6.444]
[1727719840422,6.4424,155.22,155.18,7.73259773]
[1727719840631,6.4424,155.22,155.18,6.444]
[1727719840823,6.4424,155.22,155.18,7.73259659]
[1727719841927,6.4424,155.22,155.18,6.444]
[1727719842142,6.4424,155.22,155.18,7.73259934]
[1727719843044,5.0,155.24,155.19,16.109]
[1727719843243,5.0,155.24,155.19,1.28859711]
[1727719843467,5.0,155.24,155.22,6.4423]
[1727719843745,5.0,155.24,155.22,7.73061059]
[1727719844245,5.0,155.24,155.22,1.28831059]
[1727719845754,5.0,155.24,155.21,22.5494]
[1727719846747,5.0,155.24,155.22,1.2883035]
[1727719847045,5.0,155.24,155.23,6.442]
[1727719849053,5.0,155.24,155.22,6.4421]
[1727719850849,5.0,155.24,155.21,22.5495]
[1727719851755,11.4416,155.24,155.21,16.1067]
[1727719852554,11.4416,155.24,155.19,22.5106]
[1727719852740,11.4416,155.24,155.18,22.7717]
[1727719853050,6.4421,155.23,155.19,6.4435]
[1727719853357,6.4421,155.23,155.18,29.2157]
[1727719853552,6.4421,155.23,155.19,6.4436]
[1727719853735,6.4421,155.23,155.2,1.28850879]
[1727719855440,6.4421,155.23,155.19,6.4436]
[1727719855639,6.4421,155.23,155.2,1.2885085]
[1727719856061,5.0,155.24,155.2,17.3964085]
[1727719856236,5.0,155.24,155.21,6.4426]
[1727719857337,5.0,155.24,155.2,16.1079]
[1727719857540,5.0,155.24,155.22,6.4424]
[1727719857941,5.0,155.24,155.21,6.4427]
[1727719859472,5.0,155.24,155.15,48.6525]
[1727719859646,1.5338521,155.23,155.17,16.1107]
[1727719859846,6.443,155.21,155.17,22.5551]
[1727719860279,22.0691,155.22,155.11,47.2536]
[1727719860561,6.4455,155.15,155.11,16.1169]
[1727719861062,6.4438,155.19,155.14,6.4456]
[1727719861453,22.0691,155.22,155.1,6.2534]
[1727719861454,22.0691,155.22,155.15,6.4453]
[1727719861757,15.9486,155.22,155.16,1.28883363]
[1727719861965,22.3911,155.22,155.17,6.4444]
[1727719862266,22.3911,155.22,155.18,1.28868197]
[1727719862484,5.0,155.24,155.18,1.28868197]
[1727719862485,11.4416,155.24,155.19,7.7322443]
[1727719862769,6.442,155.23,155.18,22.5542]
[1727719863960,6.442,155.23,155.19,1.28854494]
[1727719864953,6.4429,155.21,155.16,6.4445]
[1727719865145,6.4429,155.21,155.17,6.4445]
[1727719865463,6.4429,155.21,155.16,6.4448]
[1727719866268,6.4442,155.18,155.14,6.4457]
[1727719866449,6.4442,155.18,155.12,16.1162]
[1727719866450,6.4442,155.18,155.13,6.4461]
[1727719866943,6.4446,155.17,155.13,6.4461]
[1727719867148,6.4446,155.17,155.12,22.5627]
[1727719868366,6.4446,155.17,155.13,6.4461]
[1727719869845,15.8423,155.19,155.13,1.28903322]
[1727719870048,22.2861,155.19,155.14,6.4456]
[1727719870261,22.2861,155.19,155.15,1.28891383]
[1727719870652,20.7176,155.24,155.16,32.2238]
[1727719870860,5.0,155.24,155.22,22.5482]
[1727719871347,5.0,155.24,155.19,16.1089]
[1727719871552,5.0,155.24,155.2,1.28836741]
[1727719871751,6.4424,155.22,155.16,16.1121]
[1727719871954,5.0,155.24,155.16,16.1121]
[1727719871955,5.0,155.24,155.2,6.4429]
[1727719872168,5.0,155.24,155.21,1.28839307]
[1727719872568,5.0,155.24,155.2,6.4429]
[1727719873074,5.0,155.24,155.19,6.4436]
[1727719873075,11.4416,155.24,155.19,6.4436]
[1727719873467,5.0,155.24,155.18,16.1095]
[1727719873664,6.4426,155.22,155.18,16.1095]
[1727719874068,1.5338521,155.23,155.13,21.6302]
[1727719874254,6.4433,155.2,155.15,6.445]
[1727719874452,1.5338521,155.23,155.14,16.1139]
[1727719874453,1.5338521,155.19,155.14,16.1139]
[1727719874660,6.4441,155.18,155.14,16.1139]
[1727719875476,6.4441,155.18,155.14,22.5595]
[1727719875856,15.3671,155.22,155.15,1.28889125]
[1727719876076,15.3671,155.22,155.17,16.1109]
[1727719876371,6.443,155.21,155.17,16.1109]
[1727719877951,6.4437,155.19,155.13,16.1145]
[1727719878270,15.3671,155.22,155.13,16.1145]
[1727719878467,1.5338521,155.2,155.13,16.1145]
[1727719878873,6.4441,155.18,155.13,22.5603]
[1727719880682,1.5338521,155.17,155.06,0.3823947]
[1727719880976,1.5338521,155.17,155.06,9.67128079]
[1727719881361,1.5338521,155.17,155.06,0.3823947]
[1727719881561,6.4476,155.1,155.06,22.9536947]
[1727719881761,6.447,155.11,155.07,6.4484]
[1727719882164,6.447,155.11,155.06,16.5045947]
[1727719882165,6.4475,155.1,155.06,22.9535947]
[1727719883582,16.1139,155.15,155.06,22.9535947]
[1727719883583,6.4471,155.11,155.07,7.73816133]
[1727719883785,6.4471,155.11,155.07,6.4486]
[1727719884960,6.4471,155.11,155.06,22.9534947]
[1727719885688,17.5579521,155.12,155.06,16.5045947]
[1727719886366,17.5579521,155.12,155.06,0.3823947]
[1727719886576,6.4487,155.07,155.06,0.3823947]
[1727719886891,6.4479,155.09,155.06,0.3823947]
[1727719887091,16.1181,155.11,155.06,0.3823947]
[1727719887264,1.5338521,155.1,155.06,0.3823947]
[1727719887798,6.4487,155.07,155.06,0.3823947]
[1727719892295,6.4506,155.03,154.98,6.452]
[1727719893008,37.614,155.07,154.97,6.4527]
[1727719893009,6.4512,155.01,154.97,6.4527]
[1727719893193,6.452,154.99,154.96,16.9765297]
[1727719893397,6.4528,154.98,154.96,0.8440297]
[1727719893583,16.1265,155.03,154.96,0.8440297]
[1727719893785,6.4516,155.0,154.96,0.8440297]
[1727719894490,6.4521,154.99,154.96,0.8440297]
[1727719894696,7.9859521,154.99,154.96,0.8440297]
[1727719894901,6.4528,154.97,154.96,0.8440297]
[1727719896794,6.4523,154.99,154.96,0.8440297]
[1727719898386,7.9862521,154.98,154.96,0.8440297]
[1727719898706,6.4528,154.97,154.96,0.8440297]
[1727719898920,7.9866521,154.97,154.96,0.8440297]
[1727719899314,6.4528,154.97,154.96,0.8440297]
[1727719904791,7.9866521,154.97,154.96,0.8440297]
[1727719905190,6.4528,154.97,154.96,0.8440297]
[1727719906200,6.4549,154.92,154.88,22.5971]
[1727719908217,16.1326,154.97,154.88,16.1409]
[1727719908403,6.4542,154.94,154.88,16.1409]
[1727719908710,6.4546,154.93,154.89,6.4561]
[1727719909987,6.4544,154.94,154.89,6.4561]
[1727719911103,6.4538,154.95,154.9,6.4556]
[1727719911307,6.4533,154.96,154.91,1.29093923]
[1727719911499,39.2268,155.0,154.91,1.29093923]
[1727719911809,6.4537,154.95,154.91,6.4552]
[1727719912197,6.4533,154.96,154.91,7.74605346]
[1727719912506,6.4533,154.96,154.91,6.4552]
[1727719912908,16.4393,155.0,154.89,22.0549]
[1727719913108,6.4524,154.98,154.94,6.454]
[1727719913309,16.1265,155.03,154.92,16.1369]
[1727719913511,6.4524,154.98,154.94,22.589]
[1727719913808,16.1265,155.03,154.95,6.4536]
[1727719914010,24.2170521,155.04,154.94,16.1349]
[1727719914185,6.452,154.99,154.95,6.4536]
[1727719914597,1.5338521,154.98,154.91,16.1378]
[1727719914815,6.4539,154.95,154.91,16.1378]
[1727719915693,6.4538,154.95,154.91,16.1378]
[1727719916092,6.4534,154.96,154.91,22.593]
[1727719916287,16.1294,155.0,154.92,1.2908734]
[1727719916513,6.4529,154.97,154.92,1.2908734]
[1727719917495,6.4524,154.98,154.94,6.454]
[1727719918495,6.4524,154.98,154.94,7.74465593]
[1727719918700,6.4524,154.98,154.93,22.5901]
[1727719919101,6.4524,154.98,154.93,16.1358]
[1727719919303,1.5338521,155.02,154.93,22.5902]
[1727719919518,6.4532,154.96,154.92,6.4548]
[1727719919697,6.4537,154.95,154.91,6.455]
[1727719920289,6.4541,154.94,154.9,22.5945]
[1727719920503,6.4542,154.94,154.9,16.1388]
[1727719920706,6.4542,154.94,154.9,23.88530182]
[1727719920916,6.4546,154.93,154.9,16.1388]
[1727719921418,6.454,154.95,154.91,7.74634814]
[1727719921645,6.4529,154.97,154.93,6.4544]
[1727719921917,6.4517,155.0,154.95,6.4535]
[1727719922106,16.1276,155.02,154.95,7.744072]
[1727719922302,16.1276,155.02,154.95,6.4535]
[1727719922609,6.4528,154.98,154.94,16.1347]
[1727719922816,1.5338521,155.01,154.91,16.1377]
[1727719923017,22.6832,155.04,154.91,22.5927]
[1727719923018,6.4537,154.95,154.91,22.5927]
[1727719923200,16.1295,155.0,154.91,16.1377]
[1727719923607,6.4541,154.94,154.91,16.1377]
[1727719923923,6.4541,154.94,154.89,22.0549]
[1727719923924,7.9883521,154.93,154.89,22.0549]
[1727719924112,6.4552,154.92,154.89,22.0549]
[1727719924322,16.1336,154.96,154.89,23.34595836]
[1727719924508,6.4545,154.93,154.89,23.34595836]
[1727719924999,6.4545,154.93,154.89,29.80195836]
[1727719927208,6.4541,154.94,154.89,29.80195836]
[1727719928320,6.4537,154.95,154.9,16.1389]
[1727719928519,6.4533,154.96,154.92,6.4548]
[1727719928737,6.452,154.99,154.92,17.42756103]
[1727719928905,22.6832,155.04,154.94,16.1343]
[1727719929104,6.4519,155.0,154.95,6.4536]
[1727719929526,6.4521,154.99,154.95,6.4536]
[1727719930113,6.4516,155.0,154.96,6.4532]
[1727719930730,6.4516,155.0,154.95,7.74384421]
[1727719930916,6.4516,155.0,154.95,6.4533]
[1727719931120,6.4516,155.0,154.96,6.4532]
[1727719931421,6.4524,154.98,154.94,22.5882]
[1727719931840,1.5338521,154.97,154.91,16.1381]
[1727719932006,6.4529,154.97,154.93,6.4545]
[1727719932210,16.416,155.04,154.94,1.29076038]
[1727719932412,6.4519,155.0,154.95,6.4533]
[1727719933740,6.72532613,155.06,154.94,21.9188]
[1727719933912,6.4498,155.05,155.0,6.4516]
[1727719934308,6.4492,155.06,155.01,7.7412484]
[1727719935041,16.1179,155.11,155.01,1.2901484]
[1727719935334,6.4483,155.08,155.03,6.45]
[1727719935516,6.4483,155.08,155.03,7.73994381]
[1727719935918,6.4479,155.09,155.04,6.4498]
[1727719936531,15.2346,155.12,155.04,7.7396294]
[1727719936733,16.1146,155.14,155.04,7.7396294]
[1727719936734,16.1146,155.14,155.04,6.4498]
[1727719936938,6.4479,155.09,155.04,6.4498]
[1727719937237,6.449,155.07,155.02,32.2655]
[1727719937438,6.449,155.07,155.02,38.7158]
[1727719938216,6.4482,155.09,155.03,7.7400977]
[1727719938630,6.4472,155.11,155.04,16.1241]
[1727719938844,6.4477,155.1,155.05,7.738807]
[1727719939052,6.4477,155.1,155.06,6.449]
[1727719939342,22.2987,155.16,155.05,1.289707]
[1727719939531,22.2987,155.16,155.06,22.5707]
[1727719939715,6.4478,155.09,155.05,6.4494]
[1727719940328,6.4478,155.09,155.04,6.4498]
[1727719940539,6.4483,155.08,155.04,6.4498]
[1727719941419,16.1181,155.11,155.03,16.1254]
[1727719941740,6.4488,155.07,155.03,22.5756]
[1727719941935,6.4488,155.07,155.03,23.86545891]
[1727719942240,6.4483,155.08,155.03,23.86545891]
[1727719942541,6.4483,155.08,155.04,6.4499]
[1727719942918,32.2274,155.15,155.05,1.28985042]
[1727719943223,6.4474,155.1,155.05,6.4491]
[1727719943431,6.4466,155.12,155.07,6.4484]
[1727719943640,6.4474,155.1,155.06,22.571]
[1727719943918,6.4479,155.09,155.03,16.1255]
[1727719944181,6.4488,155.07,155.03,16.1255]
[1727719944319,1.5338521,155.06,155.02,16.1395]
[1727719944517,16.119,155.1,155.02,16.1395]
[1727719944518,6.4499,155.05,155.02,16.1395]
[1727719945039,6.45,155.04,155.02,16.1395]
[1727719945419,6.4503,155.03,155.01,6.2352]
[1727719945935,6.4499,155.04,155.01,6.2352]
[1727719947224,16.1182,155.11,155.02,1.29010869]